bitfinex-derivatives/quotes_BTCF0:USTF0_20260214
["timestamp","ask_amount","ask_price","bid_price","bid_amount"]
[1771098629968,0.02433357,69911.0,69906.0,0.014311]
[1771098630671,0.01431,69910.0,69906.0,0.014311]
[1771098631069,0.01002357,69911.0,69905.0,0.014311]
[1771098631869,0.02433357,69911.0,69905.0,0.014311]
[1771098632469,0.02433357,69911.0,69906.0,0.014311]
[1771098632670,0.01002357,69911.0,69908.0,0.01431]
[1771098632868,0.01436,69911.0,69907.0,0.014311]
[1771098633370,0.01436,69911.0,69903.0,0.01436]
[1771098633560,0.01436,69911.0,69886.0,0.01445582]
[1771098633561,0.014312,69901.0,69894.0,0.14312]
[1771098633765,0.014312,69901.0,69895.0,0.028673]
[1771098633967,0.014312,69901.0,69895.0,0.01436]
[1771098634271,0.014312,69901.0,69895.0,0.028673]
[1771098635271,0.014312,69901.0,69895.0,0.01436]
[1771098635766,0.014312,69902.0,69895.0,0.01436]
[1771098635971,0.014312,69902.0,69895.0,0.028673]
[1771098636169,0.014311,69906.0,69899.0,0.014312]
[1771098636675,0.028671,69907.0,69899.0,0.014312]
[1771098636865,0.01436,69907.0,69902.0,0.014312]
[1771098637061,0.01436,69907.0,69904.0,0.014311]
[1771098637266,0.01436,69907.0,69903.0,0.014311]
[1771098638470,0.014311,69904.0,69898.0,0.01436]
[1771098638669,0.014311,69904.0,69898.0,0.028672]
[1771098638868,0.01436,69907.0,69898.0,0.028672]
[1771098639071,0.01436,69907.0,69901.0,0.014312]
[1771098639464,0.01436,69907.0,69898.0,0.01436]
[1771098639772,0.028671,69907.0,69900.0,0.014312]
[1771098639972,0.01436,69907.0,69901.0,0.014312]
[1771098640168,0.014309,69918.0,69902.0,0.21755837]
[1771098640373,0.01436,69917.0,69912.0,0.01431]
[1771098641167,0.01436,69917.0,69913.0,0.014309]
[1771098641569,0.01536,69917.0,69915.0,0.014309]
[1771098641775,0.01536,69917.0,69916.0,0.014309]
[1771098641974,0.01536,69917.0,69907.0,0.01436]
[1771098641975,0.014309,69913.0,69907.0,0.01436]
[1771098642275,0.014309,69913.0,69908.0,0.01431]
[1771098643575,0.01431,69912.0,69907.0,0.01436]
[1771098643783,0.014309,69913.0,69907.0,0.01436]
[1771098643981,0.01431,69912.0,69907.0,0.01436]
[1771098644178,0.014309,69913.0,69907.0,0.01436]
[1771098644179,0.01431,69911.0,69907.0,0.01436]
[1771098644779,0.01431,69911.0,69902.0,0.14316]
[1771098644780,0.014311,69907.0,69902.0,0.14316]
[1771098644982,0.014311,69906.0,69903.0,0.01436]
[1771098645182,0.014311,69907.0,69903.0,0.01436]
[1771098645375,0.014311,69905.0,69900.0,0.01436]
[1771098647180,0.01436,69910.0,69900.0,0.028672]
[1771098647379,0.01436,69910.0,69900.0,0.01436]
[1771098647586,0.02867,69910.0,69903.0,0.014311]
[1771098647983,0.02867,69910.0,69904.0,0.014311]
[1771098648381,0.01436,69910.0,69904.0,0.014311]
[1771098648579,0.02867,69910.0,69904.0,0.014311]
[1771098649887,0.02867,69910.0,69902.0,0.014312]
[1771098649888,0.014311,69908.0,69902.0,0.014312]
[1771098650986,0.014311,69904.0,69900.0,0.01436]
[1771098652578,0.028622,69905.0,69900.0,0.01436]
[1771098652779,0.014312,69902.0,69900.0,0.01436]
[1771098652981,0.24735655,69908.0,69899.0,0.01436]
[1771098653181,0.014311,69904.0,69899.0,0.01436]
[1771098653385,0.02867,69908.0,69900.0,0.014312]
[1771098653580,0.028671,69908.0,69900.0,0.014312]
[1771098653783,0.028671,69908.0,69901.0,0.014312]
[1771098654177,0.014311,69908.0,69901.0,0.014312]
[1771098654383,0.01436,69907.0,69901.0,0.014312]
[1771098654778,0.01436,69907.0,69902.0,0.014312]
[1771098656784,0.15747,69911.0,69902.0,0.22287735]
[1771098656785,0.14316,69911.0,69902.0,0.22287735]
[1771098656982,0.01436,69910.0,69907.0,0.014311]
[1771098657383,0.01431,69912.0,69907.0,0.014311]
[1771098657594,0.01436,69911.0,69906.0,0.014311]
[1771098657787,0.02867,69911.0,69906.0,0.014311]
[1771098658287,0.02867,69911.0,69905.0,0.014311]
[1771098658588,0.01431,69910.0,69905.0,0.014311]
[1771098658790,0.01431,69909.0,69905.0,0.014311]
[1771098659188,0.01431,69909.0,69904.0,0.014311]
[1771098659690,0.01431,69910.0,69905.0,0.014311]
[1771098660188,0.01431,69910.0,69906.0,0.014311]
[1771098660591,0.01431,69910.0,69905.0,0.014311]
[1771098661488,0.01431,69910.0,69898.0,0.23718935]
[1771098661489,0.014312,69902.0,69900.0,0.01436]
[1771098661689,0.014312,69902.0,69897.0,0.014313]
[1771098662898,0.014312,69903.0,69897.0,0.028673]
[1771098663096,0.01436,69905.0,69901.0,0.014312]
[1771098663292,0.028671,69905.0,69899.0,0.014312]
[1771098663498,0.01436,69905.0,69900.0,0.014312]
[1771098664792,0.01436,69905.0,69897.0,0.01436]
[1771098665001,0.014311,69904.0,69897.0,0.01436]
[1771098665305,0.014312,69903.0,69897.0,0.01436]
[1771098666097,0.01436,69905.0,69897.0,0.01436]
[1771098666310,0.014312,69903.0,69897.0,0.01436]
[1771098667907,0.01436,69905.0,69897.0,0.01436]
[1771098667908,0.01436,69905.0,69898.0,0.014312]
[1771098668518,0.028671,69905.0,69898.0,0.014312]
[1771098669206,0.028671,69905.0,69897.0,0.028673]
[1771098670420,0.01436,69906.0,69905.0,0.014311]
[1771098670723,0.01436,69907.0,69903.0,0.014311]
[1771098671408,0.01436,69907.0,69903.0,0.028622]
[1771098671609,0.01436,69907.0,69904.0,0.014311]
[1771098672117,0.01431,69911.0,69904.0,0.014311]
[1771098672318,0.02867,69910.0,69903.0,0.014311]
[1771098673018,0.02867,69910.0,69904.0,0.014311]
[1771098674821,0.01431,69910.0,69904.0,0.014311]
[1771098675025,0.01436,69909.0,69904.0,0.014311]
[1771098676122,0.02867,69909.0,69904.0,0.014311]
[1771098676924,0.02867,69909.0,69900.0,0.01436]
[1771098676925,0.01436,69909.0,69900.0,0.01436]
[1771098677121,0.01436,69909.0,69900.0,0.028672]
[1771098677122,0.014311,69906.0,69900.0,0.028672]
[1771098678029,0.01431,69908.0,69903.0,0.014311]
[1771098678629,0.01431,69908.0,69902.0,0.014312]
[1771098680126,0.01431,69908.0,69903.0,0.014311]
[1771098683731,0.02867,69909.0,69903.0,0.014311]
[1771098683930,0.01431,69908.0,69903.0,0.014311]
[1771098686738,0.014311,69907.0,69902.0,0.014312]
[1771098688537,0.014311,69908.0,69902.0,0.014312]
[1771098689034,0.01436,69909.0,69903.0,0.014311]
[1771098689236,0.14316,69913.0,69909.0,0.01431]
[1771098689431,0.01436,69912.0,69908.0,0.01431]
[1771098689835,0.21612291,69932.0,69921.0,0.014308]
[1771098690034,0.014307,69924.0,69914.0,0.014309]
[1771098690239,0.014309,69918.0,69913.0,0.014309]
[1771098691243,0.028668,69919.0,69914.0,0.014309]
[1771098691644,0.042976,69919.0,69913.0,0.014309]
[1771098692045,0.014308,69918.0,69912.0,0.04298]
[1771098692241,0.014308,69918.0,69912.0,0.02867]
[1771098692442,0.014308,69918.0,69913.0,0.014309]
[1771098693042,0.01436,69920.0,69913.0,0.014309]
[1771098694147,0.01536,69920.0,69913.0,0.014309]
[1771098694447,0.01536,69920.0,69916.0,0.014309]
[1771098694747,0.01536,69920.0,69917.0,0.014308]
[1771098694947,0.01536,69920.0,69916.0,0.014309]
[1771098695547,0.01436,69920.0,69917.0,0.014309]
[1771098695847,0.01436,69920.0,69913.0,0.014309]
[1771098695848,0.01436,69920.0,69918.0,0.014308]
[1771098696449,0.01536,69920.0,69917.0,0.014309]
[1771098697044,0.01436,69920.0,69917.0,0.014309]
[1771098697448,0.01436,69920.0,69918.0,0.014308]
[1771098698348,0.01436,69920.0,69917.0,0.014309]
[1771098698647,0.01436,69920.0,69918.0,0.014308]
[1771098699545,0.014305,69935.0,69915.0,0.2279276]
[1771098699746,0.014304,69938.0,69929.0,0.014306]
[1771098699747,0.18609,69934.0,69929.0,0.014306]
[1771098700051,0.014305,69933.0,69929.0,0.014306]
[1771098700243,0.15748,69933.0,69929.0,0.014306]
[1771098700647,0.171785,69933.0,69929.0,0.014306]
[1771098700854,0.014306,69930.0,69926.0,0.014307]
[1771098701155,0.01436,69929.0,69926.0,0.014307]
[1771098701442,0.01436,69929.0,69927.0,0.014307]
[1771098701946,0.01436,69929.0,69926.0,0.014307]
[1771098702250,0.028612,69931.0,69926.0,0.014307]
[1771098702549,0.001,69929.0,69926.0,0.014307]
[1771098704453,0.01436,69930.0,69928.0,0.014306]
[1771098704653,0.01436,69930.0,69929.0,0.014306]
[1771098704951,0.01436,69930.0,69927.0,0.014306]
[1771098705253,0.001,69929.0,69927.0,0.014306]
[1771098705551,0.001,69929.0,69925.0,0.014307]
[1771098705953,0.029666,69930.0,69925.0,0.014307]
[1771098707649,0.001,69929.0,69925.0,0.014307]
[1771098708554,0.029666,69930.0,69926.0,0.014307]
[1771098709255,0.001,69929.0,69926.0,0.014307]
[1771098709455,0.015306,69929.0,69925.0,0.014307]
[1771098710355,0.001,69929.0,69928.0,0.014306]
[1771098710556,0.014305,69937.0,69931.0,0.014306]
[1771098710758,0.001,69930.0,69929.0,0.014306]
[1771098711458,0.01436,69932.0,69930.0,0.014306]
[1771098712455,0.01436,69932.0,69929.0,0.014306]
[1771098712657,0.01436,69931.0,69922.0,0.01436]
[1771098712856,0.014307,69924.0,69923.0,0.01436]
[1771098713060,0.014307,69923.0,69920.0,0.01436]
[1771098714262,0.014308,69922.0,69920.0,0.01436]
[1771098714461,0.014309,69917.0,69911.0,0.01431]
[1771098714657,0.014309,69917.0,69910.0,0.02867]
[1771098714853,0.014309,69917.0,69912.0,0.15743]
[1771098715263,0.014308,69918.0,69912.0,0.17174]
[1771098715663,0.014308,69918.0,69912.0,0.02862]
[1771098715966,0.014308,69918.0,69912.0,0.01431]
[1771098716163,0.014308,69918.0,69912.0,0.028619]
[1771098716458,0.01436,69918.0,69915.0,0.014309]
[1771098716770,0.01436,69918.0,69916.0,0.014309]
[1771098716955,0.01436,69918.0,69915.0,0.014309]
[1771098717464,0.01436,69918.0,69914.0,0.014309]
[1771098717667,0.01436,69918.0,69913.0,0.014309]
[1771098719256,0.01436,69918.0,69912.0,0.01431]
[1771098720556,0.01436,69918.0,69910.0,0.01436]
[1771098720557,0.014309,69914.0,69910.0,0.01436]
[1771098721363,0.01431,69913.0,69906.0,0.014311]
[1771098721567,0.01431,69913.0,69907.0,0.01436]
[1771098721963,0.01431,69912.0,69907.0,0.01436]
[1771098722163,0.014309,69913.0,69907.0,0.01436]
[1771098722367,0.028669,69915.0,69908.0,0.01431]
[1771098722666,0.014309,69914.0,69907.0,0.014311]
[1771098722866,0.014309,69913.0,69906.0,0.014311]
[1771098723063,0.014309,69913.0,69907.0,0.014311]
[1771098723257,0.014309,69914.0,69907.0,0.014311]
[1771098723457,0.028669,69915.0,69907.0,0.014311]
[1771098723458,0.014309,69913.0,69907.0,0.014311]
[1771098724567,0.028619,69913.0,69905.0,0.042982]
[1771098724767,0.01431,69911.0,69905.0,0.028671]
[1771098725368,0.01431,69912.0,69905.0,0.028671]
[1771098725765,0.014309,69913.0,69905.0,0.028671]
[1771098725960,0.014309,69913.0,69906.0,0.014311]
[1771098726469,0.028669,69915.0,69908.0,0.01431]
[1771098726661,0.01436,69915.0,69905.0,0.01436]
[1771098726857,0.01436,69914.0,69912.0,0.014309]
[1771098727167,0.014308,69921.0,69914.0,0.014309]
[1771098727367,0.014308,69921.0,69915.0,0.014309]
[1771098727667,0.014308,69921.0,69914.0,0.014309]
[1771098727668,0.014308,69920.0,69913.0,0.014309]
[1771098727962,0.014309,69918.0,69912.0,0.01431]
[1771098728866,0.014309,69916.0,69905.0,0.028671]
[1771098729067,0.01431,69912.0,69906.0,0.014311]
[1771098730268,0.01436,69914.0,69905.0,0.01436]
[1771098730464,0.01431,69912.0,69906.0,0.014311]
[1771098730865,0.01431,69911.0,69906.0,0.014311]
[1771098731368,0.028619,69913.0,69907.0,0.014311]
[1771098731570,0.01431,69912.0,69907.0,0.014311]
[1771098731869,0.01431,69912.0,69906.0,0.028622]
[1771098732162,0.01431,69912.0,69907.0,0.014311]
[1771098732463,0.028669,69913.0,69907.0,0.014311]
[1771098732968,0.028669,69913.0,60300.0,0.04818518]
[1771098732969,0.014311,69906.0,69900.0,0.014312]
[1771098733169,0.028671,69906.0,69900.0,0.014312]
[1771098733567,0.028671,69906.0,69898.0,0.01436]
[1771098733568,0.01436,69906.0,69902.0,0.014312]
[1771098733758,0.01436,69906.0,69903.0,0.014311]
[1771098735069,0.01436,69906.0,69901.0,0.014312]
[1771098735267,0.01436,69906.0,69902.0,0.014312]
[1771098737072,0.01436,69906.0,69901.0,0.014312]
[1771098737862,0.028671,69906.0,69899.0,0.014312]
[1771098738066,0.01436,69906.0,69900.0,0.014312]
[1771098738367,0.01436,69906.0,69901.0,0.014312]
[1771098740070,0.01436,69906.0,69905.0,0.014311]
[1771098741076,0.01431,69912.0,69905.0,0.014311]
[1771098741376,0.02867,69911.0,69905.0,0.014311]
[1771098742369,0.23674412,69911.0,69905.0,0.014311]
[1771098742574,0.014311,69907.0,69901.0,0.014312]
[1771098742774,0.01436,69906.0,69901.0,0.014312]
[1771098743383,0.01436,69906.0,69902.0,0.014312]
[1771098745980,0.01436,69906.0,69904.0,0.014311]
[1771098746180,0.01436,69906.0,69905.0,0.014311]
[1771098747378,0.01436,69906.0,69904.0,0.014311]
[1771098747778,0.01436,69906.0,69905.0,0.014311]
[1771098748282,0.14316,69912.0,69910.0,0.01431]
[1771098748476,0.014309,69916.0,69910.0,0.01431]
[1771098748682,0.01436,69915.0,69908.0,0.20386783]
[1771098748878,0.01436,69915.0,69902.0,0.028671]
[1771098748879,0.01431,69912.0,69907.0,0.014311]
[1771098749281,0.01436,69914.0,69902.0,0.01436]
[1771098749282,0.028669,69914.0,69909.0,0.01431]
[1771098749985,0.01436,69913.0,69910.0,0.01431]
[1771098751387,0.01436,69913.0,69911.0,0.01431]
[1771098752788,0.01436,69913.0,69910.0,0.01431]
[1771098753288,0.01436,69913.0,69911.0,0.01431]
[1771098753689,0.01436,69913.0,69910.0,0.01431]
[1771098755888,0.01436,69913.0,69903.0,0.014311]
[1771098755889,0.014311,69908.0,69903.0,0.014311]
[1771098756081,0.028671,69907.0,69903.0,0.014311]
[1771098756285,0.01436,69907.0,69903.0,0.014311]
[1771098756589,0.028671,69907.0,69902.0,0.014312]
[1771098756782,0.014311,69905.0,69900.0,0.014312]
[1771098756982,0.014311,69906.0,69902.0,0.014312]
[1771098757183,0.028671,69907.0,69902.0,0.014312]
[1771098757387,0.01436,69907.0,69903.0,0.015311]
[1771098757587,0.01436,69907.0,69904.0,0.014311]
[1771098758592,0.01436,69907.0,69903.0,0.014311]
[1771098759492,0.01436,69906.0,69903.0,0.014311]
[1771098762299,0.01431,69908.0,69903.0,0.014311]
[1771098762595,0.01436,69907.0,69904.0,0.014311]
[1771098763301,0.01431,69910.0,69904.0,0.014311]
[1771098763302,0.01436,69908.0,69904.0,0.014311]
[1771098763501,0.01436,69908.0,69903.0,0.014311]
[1771098764194,0.01436,69908.0,69905.0,0.014311]
[1771098764396,0.14316,69919.0,69910.0,0.01431]
[1771098764595,0.01431,69911.0,69905.0,0.01436]
[1771098764798,0.02867,69911.0,69905.0,0.014311]
[1771098766701,0.01431,69909.0,69903.0,0.028671]
[1771098766901,0.01431,69909.0,69904.0,0.014311]
[1771098767101,0.01431,69910.0,69904.0,0.014311]
[1771098767404,0.01436,69909.0,69904.0,0.014311]
[1771098767696,0.01436,69909.0,69899.0,0.014312]
[1771098767898,0.02867,69909.0,69903.0,0.014311]
[1771098768100,0.028621,69908.0,69902.0,0.014312]
[1771098768401,0.014311,69906.0,69897.0,0.028673]
[1771098768594,0.014311,69907.0,69901.0,0.014312]
[1771098768796,0.014311,69905.0,69901.0,0.01436]
[1771098768993,0.014311,69907.0,69901.0,0.028672]
[1771098769398,0.014311,69908.0,69902.0,0.014312]
[1771098772002,0.01436,69909.0,69899.0,0.01436]
[1771098772201,0.01436,69909.0,69906.0,0.014311]
[1771098772907,0.01436,69909.0,69901.0,0.014312]
[1771098773109,0.02867,69909.0,69902.0,0.014312]
[1771098773308,0.02867,69909.0,69903.0,0.014311]
[1771098773511,0.014311,69908.0,69902.0,0.014312]
[1771098773699,0.014311,69905.0,69899.0,0.028672]
[1771098774009,0.014311,69905.0,69899.0,0.01436]
[1771098774198,0.014311,69904.0,69899.0,0.01436]
[1771098774809,0.014311,69905.0,69899.0,0.01436]
[1771098775308,0.014311,69905.0,69899.0,0.028672]
[1771098775509,0.21916021,69908.0,69899.0,0.01436]
[1771098775709,0.014312,69902.0,69899.0,0.01436]
[1771098776409,0.014312,69902.0,69898.0,0.01436]
[1771098778312,0.014263,69904.0,69898.0,0.01436]
[1771098778503,0.014311,69903.0,69898.0,0.01436]
[1771098779102,0.014312,69902.0,69898.0,0.01436]
[1771098779812,0.014312,69903.0,69898.0,0.01436]
[1771098780403,0.01436,69905.0,69899.0,0.014312]
[1771098780609,0.028671,69905.0,69899.0,0.014312]
[1771098781513,0.014312,69899.0,69895.0,0.01436]
[1771098781908,0.014312,69900.0,69895.0,0.01436]
[1771098782108,0.014312,69901.0,69895.0,0.01436]
[1771098782310,0.014312,69902.0,69895.0,0.028673]
[1771098782510,0.01436,69901.0,69895.0,0.028673]
[1771098782803,0.028672,69901.0,69895.0,0.028673]
[1771098784410,0.028672,69901.0,69895.0,0.042986]
[1771098784611,0.028672,69901.0,69895.0,0.028673]
[1771098785014,0.21916021,69919.0,69895.0,0.22367182]
[1771098785215,0.01436,69916.0,69911.0,0.01431]
[1771098786014,0.014308,69919.0,69911.0,0.01431]
[1771098786220,0.171829,69916.0,69910.0,0.01431]
[1771098786915,0.014309,69916.0,69911.0,0.01431]
[1771098787113,0.01436,69915.0,69911.0,0.01431]
[1771098787921,0.01436,69914.0,69910.0,0.01431]
[1771098788622,0.014309,69916.0,69910.0,0.01431]
[1771098788923,0.01436,69915.0,69910.0,0.01431]
[1771098789719,0.014309,69916.0,69910.0,0.01431]
[1771098789920,0.01436,69915.0,69910.0,0.01431]
[1771098790120,0.028669,69915.0,69910.0,0.01431]
[1771098792819,0.01436,69915.0,69910.0,0.01431]
[1771098793121,0.01436,69915.0,69912.0,0.01431]
[1771098793515,0.01436,69915.0,69910.0,0.01431]
[1771098793815,0.014309,69916.0,69910.0,0.01431]
[1771098794124,0.028669,69915.0,69910.0,0.01431]
[1771098794321,0.028669,69915.0,69909.0,0.01431]
[1771098794722,0.01436,69915.0,69910.0,0.01431]
[1771098797225,0.014308,69919.0,69904.0,0.21164308]
[1771098797428,0.15752,69918.0,69917.0,0.014308]
[1771098797616,0.15752,69918.0,69912.0,0.01431]
[1771098797823,0.014309,69917.0,69911.0,0.01431]
[1771098798024,0.171828,69918.0,69911.0,0.02862]
[1771098798323,0.171828,69918.0,69907.0,0.014311]
[1771098798324,0.171828,69918.0,69912.0,0.01431]
[1771098798515,0.171828,69918.0,69910.0,0.01431]
[1771098798516,0.014309,69916.0,69910.0,0.01431]
[1771098798719,0.01436,69915.0,69910.0,0.01431]
[1771098798915,0.01436,69915.0,69910.0,0.02862]
[1771098799127,0.01436,69915.0,69911.0,0.01431]
[1771098799731,0.01436,69915.0,69909.0,0.01431]
[1771098799930,0.01436,69915.0,69910.0,0.01431]
[1771098800334,0.01436,69915.0,69911.0,0.01431]
[1771098802334,0.01436,69914.0,69911.0,0.01431]
[1771098803134,0.14316,69919.0,69914.0,0.014309]
[1771098803331,0.01436,69918.0,69914.0,0.014309]
[1771098803835,0.01436,69918.0,69915.0,0.014309]
[1771098804037,0.01436,69918.0,69914.0,0.014309]
[1771098804936,0.014309,69915.0,69910.0,0.01431]
[1771098805127,0.01436,69914.0,69910.0,0.02862]
[1771098805536,0.01436,69914.0,69911.0,0.01431]
[1771098806535,0.01436,69914.0,69910.0,0.01431]
[1771098806833,0.01436,69914.0,69911.0,0.01431]
[1771098807033,0.01436,69914.0,69910.0,0.01431]
[1771098807235,0.028669,69914.0,69908.0,0.01431]
[1771098807434,0.01431,69911.0,69906.0,0.014311]
[1771098807633,0.01431,69912.0,69906.0,0.014311]
[1771098807830,0.01436,69911.0,69907.0,0.014311]
[1771098808631,0.01436,69911.0,69906.0,0.014311]
[1771098808829,0.01436,69911.0,69900.0,0.14316]
[1771098808830,0.20766377,69910.0,69900.0,0.14316]
[1771098809028,0.01436,69911.0,69900.0,0.15752]
[1771098809232,0.01436,69911.0,69908.0,0.01431]
[1771098809435,0.014309,69915.0,69909.0,0.01431]
[1771098809627,0.171829,69914.0,69909.0,0.01431]
[1771098809832,0.15752,69913.0,69909.0,0.01431]
[1771098810330,0.014309,69914.0,69909.0,0.01431]
[1771098810535,0.01436,69912.0,69910.0,0.01431]
[1771098812340,0.01436,69911.0,69910.0,0.01431]
[1771098812836,0.014309,69915.0,69910.0,0.01431]
[1771098813029,0.15752,69914.0,69910.0,0.01431]
[1771098813538,0.014309,69915.0,69910.0,0.02862]
[1771098813739,0.01436,69914.0,69913.0,0.014309]
[1771098813935,0.15752,69914.0,69913.0,0.014309]
[1771098814137,0.014309,69917.0,69913.0,0.014309]
[1771098814441,0.15752,69916.0,69912.0,0.014309]
[1771098815043,0.15752,69915.0,69912.0,0.014309]
[1771098815943,0.15752,69915.0,69911.0,0.01431]
[1771098817445,0.15752,69915.0,69911.0,0.02862]
[1771098818347,0.15752,69915.0,69911.0,0.01431]
[1771098818643,0.15752,69915.0,69912.0,0.01431]
[1771098821150,0.014309,69916.0,69912.0,0.01431]
[1771098821443,0.01436,69915.0,69912.0,0.01431]
[1771098823648,0.01436,69914.0,69912.0,0.01431]
[1771098824052,0.01436,69914.0,69911.0,0.01431]
[1771098825550,0.20362075,69929.0,69919.0,0.014308]
[1771098825753,0.01436,69923.0,69918.0,0.014308]
[1771098825955,0.01436,69922.0,69918.0,0.014308]
[1771098826249,0.014307,69925.0,69921.0,0.014308]
[1771098826449,0.014307,69923.0,69918.0,0.014308]
[1771098826654,0.01436,69923.0,69919.0,0.014308]
[1771098826955,0.01436,69923.0,69920.0,0.014308]
[1771098827153,0.01436,69923.0,69919.0,0.028616]
[1771098827456,0.01436,69923.0,69920.0,0.014308]
[1771098827859,0.01436,69923.0,69919.0,0.014308]
[1771098827860,0.01436,69923.0,69921.0,0.014308]
[1771098828059,0.01436,69923.0,69920.0,0.014308]
[1771098830059,0.01436,69923.0,69919.0,0.014308]
[1771098830458,0.01436,69923.0,69920.0,0.014308]
[1771098831261,0.01436,69923.0,69920.0,0.028616]
[1771098831559,0.01436,69923.0,69919.0,0.014308]
[1771098831858,0.014307,69923.0,69919.0,0.014308]
[1771098832062,0.01436,69922.0,69919.0,0.014308]
[1771098832457,0.014308,69921.0,69915.0,0.01436]
[1771098832761,0.014308,69921.0,69916.0,0.014309]
[1771098833162,0.028668,69921.0,69916.0,0.014309]
[1771098833363,0.042976,69921.0,69916.0,0.014309]
[1771098833557,0.042976,69921.0,69907.0,0.22017428]
[1771098833558,0.014308,69919.0,69912.0,0.01431]
[1771098833758,0.01436,69918.0,69914.0,0.014309]
[1771098834357,0.01436,69918.0,69915.0,0.014309]
[1771098834769,0.01436,69918.0,69916.0,0.014309]
[1771098835058,0.014307,69926.0,69920.0,0.014308]
[1771098835264,0.21792675,69932.0,69924.0,0.014307]
[1771098835458,0.014306,69928.0,69923.0,0.014307]
[1771098835764,0.01436,69927.0,69923.0,0.014307]
[1771098835960,0.028667,69927.0,69923.0,0.014307]
[1771098836159,0.01436,69926.0,69923.0,0.014307]
[1771098836865,0.028667,69926.0,69922.0,0.014308]
[1771098837064,0.014307,69925.0,69921.0,0.014308]
[1771098837264,0.014307,69925.0,69919.0,0.014308]
[1771098837559,0.157427,69927.0,69923.0,0.014307]
[1771098837560,0.014307,69927.0,69923.0,0.014307]
[1771098837760,0.01436,69926.0,69923.0,0.014307]
[1771098837961,0.01436,69926.0,69924.0,0.014307]
[1771098840864,0.01436,69926.0,69919.0,0.01436]
[1771098841066,0.014307,69925.0,69921.0,0.014308]
[1771098841365,0.014307,69925.0,69911.0,0.20586328]
[1771098841366,0.20362075,69960.0,69927.0,0.20586328]
[1771098841566,0.014303,69943.0,69939.0,0.014304]
[1771098841862,0.01436,69942.0,69939.0,0.014304]
[1771098842061,0.01436,69942.0,69938.0,0.014304]
[1771098842363,0.028664,69942.0,69937.0,0.014304]
[1771098842569,0.21798075,69942.0,69931.0,0.01436]
[1771098842871,0.014305,69934.0,69930.0,0.014306]
[1771098843070,0.014305,69936.0,69929.0,0.042972]
[1771098843266,0.014305,69935.0,69929.0,0.028666]
[1771098843465,0.02861,69937.0,69932.0,0.014306]
[1771098843771,0.028665,69935.0,69928.0,0.014306]
[1771098843966,0.014305,69934.0,69929.0,0.014306]
[1771098844362,0.014306,69932.0,69926.0,0.01436]
[1771098844672,0.20362075,69934.0,69926.0,0.01436]
[1771098844673,0.014306,69929.0,69926.0,0.01436]
[1771098844864,0.014306,69929.0,69922.0,0.028668]
[1771098845764,0.014306,69928.0,69923.0,0.014307]
[1771098845971,0.014307,69925.0,69922.0,0.01436]
[1771098846271,0.014307,69925.0,69921.0,0.01436]
[1771098846571,0.014307,69926.0,69921.0,0.01436]
[1771098846774,0.014307,69925.0,69921.0,0.01436]
[1771098846972,0.014307,69926.0,69921.0,0.01436]
[1771098847173,0.014307,69925.0,69921.0,0.01436]
[1771098847368,0.014306,69929.0,69917.0,0.14312]
[1771098847369,0.21798075,69926.0,69917.0,0.14312]
[1771098847570,0.21798075,69926.0,69907.0,0.20586328]
[1771098847571,0.014308,69921.0,69908.0,0.14312]
[1771098847775,0.014311,69908.0,69903.0,0.01436]
[1771098847975,0.014311,69908.0,69904.0,0.01436]
[1771098848370,0.014311,69907.0,69903.0,0.01436]
[1771098848568,0.014311,69908.0,69903.0,0.01436]
[1771098848973,0.014311,69908.0,69903.0,0.028671]
[1771098849277,0.01436,69911.0,69903.0,0.028671]
[1771098849869,0.01436,69911.0,69906.0,0.014311]
[1771098850776,0.02867,69911.0,69906.0,0.014311]
[1771098851677,0.02867,69911.0,69905.0,0.014311]
[1771098852471,0.014311,69904.0,69898.0,0.157432]
[1771098852675,0.028622,69904.0,69899.0,0.01436]
[1771098853580,0.014311,69908.0,69899.0,0.01436]
[1771098853581,0.01431,69908.0,69899.0,0.01436]
[1771098853778,0.014311,69908.0,69902.0,0.014312]
[1771098854381,0.014311,69908.0,69903.0,0.014311]
[1771098854580,0.014311,69908.0,69902.0,0.014312]
[1771098854781,0.014311,69907.0,69902.0,0.014312]
[1771098855284,0.014311,69906.0,69901.0,0.014312]
[1771098855678,0.014311,69904.0,69899.0,0.028672]
[1771098855879,0.014311,69905.0,69900.0,0.01436]
[1771098856185,0.014311,69905.0,69900.0,0.028672]
[1771098856372,0.014311,69905.0,69900.0,0.01436]
[1771098856573,0.014311,69905.0,69900.0,0.028672]
[1771098858489,0.014311,69906.0,69900.0,0.028672]
[1771098859384,0.014311,69908.0,69902.0,0.014312]
[1771098860086,0.014311,69907.0,69902.0,0.014312]
[1771098860290,0.014311,69908.0,69902.0,0.014312]
[1771098860489,0.02867,69909.0,69903.0,0.014311]
[1771098860887,0.014311,69908.0,69903.0,0.014311]
[1771098862191,0.01436,69909.0,69905.0,0.014311]
[1771098862689,0.01436,69909.0,69906.0,0.014311]
[1771098863089,0.01436,69909.0,69905.0,0.014311]
[1771098863989,0.014311,69908.0,69903.0,0.014311]
[1771098864589,0.014311,69905.0,69900.0,0.028672]
[1771098864982,0.014311,69904.0,69900.0,0.01436]
[1771098865191,0.014312,69903.0,69900.0,0.01436]
[1771098865386,0.01431,69908.0,69898.0,0.14312]
[1771098865691,0.014312,69902.0,69899.0,0.01436]
[1771098866582,0.014312,69901.0,69898.0,0.14312]